{"text_format":"2","workbook":"xlsx","n_sheets":6,"sheets":["Főösszesítő","Munkanem összesítő","19.Költségtérítések","36.Vakolás és rabicolás","47.Felületképzés","90.Ideiglenes felületvédelem é"],"not_rendered":{"charts":0,"images":0,"macros":0,"external_links":0,"defined_names":0,"comments":0,"pivot_tables":0},"unopened":[],"bounds":{"document_bytes":16777216,"sheet_cells":100000,"run_cost":"one","rows_first":2000,"rows_last":500,"rows_between":2000,"halvings":0,"cell_chars":16384,"cell_head_chars":4096},"cells_cut":0,"cells_raw":0,"read":"whole","date_system":"1900"}

{"sheet":"Főösszesítő","index":0,"n_rows":8,"n_cols":4,"rows_kept":8,"cut":false,"hidden":false,"merged":[[0,0,0,3],[2,0,2,3],[5,2,5,3],[6,2,6,3],[7,2,7,3]]}
[]
[]
["Költségvetés főösszesítő"]
["Megnevezés",null,"Anyagköltség","Díjköltség"]
["1 Építmény közvetlen költségei",null,{"$f":"'Munkanem összesítő'!C6","v":0},{"$f":"'Munkanem összesítő'!D6","v":0}]
["2.1 ÁFA vetítési alap",null,{"$f":"ROUND(C5+D5,0)","v":0}]
["2.2 ÁFA",0.27,{"$f":"ROUND(C6*B7,0)","v":0}]
["3 A munka ára (HUF)",null,{"$f":"ROUND(C7+C6,0)","v":0}]

{"sheet":"Munkanem összesítő","index":1,"n_rows":6,"n_cols":4,"rows_kept":6,"cut":false,"hidden":false,"merged":[]}
["Ssz.","Megnevezés","Anyagköltség","Díjköltség"]
["19","Költségtérítések",{"$f":"'19.Költségtérítések'!H3","v":0},{"$f":"'19.Költségtérítések'!I3","v":0}]
["36","Vakolás és rabicolás",{"$f":"'36.Vakolás és rabicolás'!H3","v":0},{"$f":"'36.Vakolás és rabicolás'!I3","v":0}]
["47","Felületképzés",{"$f":"'47.Felületképzés'!H11","v":0},{"$f":"'47.Felületképzés'!I11","v":0}]
["90","Ideiglenes felületvédelem és takarítási munkák",{"$f":"'90.Ideiglenes felületvédelem é'!H4","v":0},{"$f":"'90.Ideiglenes felületvédelem é'!I4","v":0}]
[null,"Összesen (HUF)",{"$f":"ROUND(SUM(C2:C5),0)","v":0},{"$f":"ROUND(SUM(D2:D5),0)","v":0}]

{"sheet":"19.Költségtérítések","index":2,"n_rows":3,"n_cols":9,"rows_kept":3,"cut":false,"hidden":false,"merged":[]}
["Ssz.","Tételszám","Tétel szövege","Menny.","Egység","Anyag egységár","Díj egységre","Anyag összesen","Díj összesen"]
[1,"19-090-1","Építmények átadás előtti utolsó takarítása (pipere)",1,"db",0,0,{"$f":"ROUND(F2*D2,0)","v":0},{"$f":"ROUND(G2*D2,0)","v":0}]
[null,null,"Munkanem összesen (HUF)",{"$nulls":4},{"$f":"ROUND(SUM(H2:H2),0)","v":0},{"$f":"ROUND(SUM(I2:I2),0)","v":0}]

{"sheet":"36.Vakolás és rabicolás","index":3,"n_rows":3,"n_cols":9,"rows_kept":3,"cut":false,"hidden":false,"merged":[]}
["Ssz.","Tételszám","Tétel szövege","Menny.","Egység","Anyag egységár","Díj egységre","Anyag összesen","Díj összesen"]
[1,"36-090-1.1.1-0550030","Vakolatjavítás oldalfalon, tégla-, beton-, kőfelületen vagy építőlemezen, a meglazult, sérült vakolat előzetes leverésével, hiánypótlás 5% alatt, Hvb4-mc, beltéri, vakoló, cementes mészhabarcs mészpéppel",10,"m²",0,0,{"$f":"ROUND(F2*D2,0)","v":0},{"$f":"ROUND(G2*D2,0)","v":0}]
[null,null,"Munkanem összesen (HUF)",{"$nulls":4},{"$f":"ROUND(SUM(H2:H2),0)","v":0},{"$f":"ROUND(SUM(I2:I2),0)","v":0}]

{"sheet":"47.Felületképzés","index":4,"n_rows":11,"n_cols":9,"rows_kept":11,"cut":false,"hidden":false,"merged":[]}
["Ssz.","Tételszám","Tétel szövege","Menny.","Egység","Anyag egységár","Díj egységre","Anyag összesen","Díj összesen"]
[1,"47-000-1.3.1.1","Belső festéseknél felület előkészítése, részmunkák; vizes diszperziós falfesték lekaparása, bármilyen padozatú helységben, tagolatlan felületen",403,"m²",0,0,{"$f":"ROUND(F2*D2,0)","v":0},{"$f":"ROUND(G2*D2,0)","v":0}]
[2,"47-000-1.21.4.1.1-0419482","Belső festéseknél felület előkészítése, részmunkák; glettelés diszperziós kötőanyagú glettel, vakolt felületen, tagolatlan felületen, POLI-FARBE kész glett, beltéri, kézi- és gépi felhordásra",403,"m²",0,0,0,0]
[3,"47-010-2.1.1-0419506","Enyhén nedvszívó vagy sima falfelületek  tapadásközvetítő alapozása, vizes-diszperziós, akril bázisú alapozóval, tagolatlan felületen, POLI-FARBE Inntaler diszperziós mélyalapozó",2577,"m²",0,0,0,0]
[4,"47-011-15.1.1.1-0160011","Diszperziós festés (két rétegben) műanyag bázisú vizes-diszperziós  fehér vagy gyárilag színezett festékkel, új vagy régi lekapart, előkészített alapfelületen, vakolaton, két rétegben, tagolatlan sima felületen, POLI-FARBE Inntaler diszperziós beltéri, fehér falfesték",2577,"m²",0,0,0,0]
[5,"K 47-000","Belső festéseknél felület előkészítése, részmunkák; régi olajfesték csiszolása, bármilyen padozatú helyiségben, tagolatlan felületen",110,"m²",0,0,0,0]
[6,"47-031-1.1.1.1-0130701","Belső fafelületek alapmázolása, műgyantabázisú (alkid) oldószertartalmú alapozóval, tagolatlan felületen, Trinát univerzális alapozó, fehér 100, EAN: 5995061117055",110,"m²",0,0,0,0]
[7,"47-031-1.5.1.1-0130435","Belső fafelületek zománclakkozása, műgyantabázisú (alkid) oldószertartalmú zománccal, tagolatlan felületen, Trinát zománc, selyemfényű, zöld 601, EAN: 5995061569526",110,"m²",0,0,0,0]
[8,"K 47-011","Supralux falfesték Wallkyd beltéri higiéniai, fehér, festés  új vagy régi lekapart, előkészített alapfelületen,vakolaton, tagolatlan sima felületen, ",20,"m²",0,0,0,0]
[9,"K 47-000","Belső festéseknél felület előkészítése, részmunkák; falrepedészáró szalagozás, sarkok, hajlatok és repedések takarására",100,"m",0,0,0,0]
[null,null,"Munkanem összesen (HUF)",{"$nulls":4},{"$f":"ROUND(SUM(H2:H10),0)","v":0},{"$f":"ROUND(SUM(I2:I10),0)","v":0}]

{"sheet":"90.Ideiglenes felületvédelem é","index":5,"n_rows":4,"n_cols":9,"rows_kept":4,"cut":false,"hidden":false,"merged":[]}
["Ssz.","Tételszám","Tétel szövege","Menny.","Egység","Anyag egységár","Díj egységre","Anyag összesen","Díj összesen"]
[1,"90-008-1-0110202","Festés előtt burkolatok takarásának készítése, Takarás készítése fóliával",6,"100 m²",0,0,{"$f":"ROUND(F2*D2,0)","v":0},{"$f":"ROUND(G2*D2,0)","v":0}]
[2,"90-008-2","Festés után burkolatok takarásának felszedése",6,"100 m²",0,0,{"$f":"ROUND(F3*D3,0)","v":0},{"$f":"ROUND(G3*D3,0)","v":0}]
[null,null,"Munkanem összesen (HUF)",{"$nulls":4},{"$f":"ROUND(SUM(H2:H3),0)","v":0},{"$f":"ROUND(SUM(I2:I3),0)","v":0}]